bitfinex/quotes_ETHUSD_20250715
["timestamp","ask_amount","ask_price","bid_price","bid_amount"]
[1752582889052,1e-08,3008.0,3007.9,3.3245786]
[1752582890481,1e-08,3008.0,3007.9,3.35782438]
[1752582890781,1e-08,3008.0,3007.9,3.3245786]
[1752582890949,1e-08,3008.0,3007.9,10.92223537]
[1752582891366,1e-08,3008.0,3007.9,4.69023537]
[1752582891560,1e-08,3008.0,3007.9,10.91723537]
[1752582891775,1e-08,3008.0,3007.9,4.69023537]
[1752582891980,1e-08,3008.0,3007.9,10.91323537]
[1752582892351,1e-08,3008.0,3007.9,3.3245786]
[1752582892554,1e-08,3008.0,3007.9,3.35782438]
[1752582893086,1e-08,3008.0,3007.9,3.3245786]
[1752582893282,1e-08,3008.0,3007.9,3.35782438]
[1752582893649,1e-08,3008.0,3007.9,3.3245786]
[1752582893979,1e-08,3008.2,3008.1,3.32435756]
[1752582894180,1e-08,3008.2,3008.1,3.48995756]
[1752582895053,1e-08,3008.9,3008.3,3.32413655]
[1752582895382,1e-08,3008.9,3008.8,3.48918415]
[1752582895569,1e-08,3008.9,3008.8,15.88918415]
[1752582895879,1e-08,3008.9,3008.8,18.56467184]
[1752582896760,1e-08,3008.9,3008.8,6.16467184]
[1752582896975,1e-08,3008.9,3008.8,3.48918415]
[1752582899693,1e-08,3008.9,3008.8,9.68018415]
[1752582900300,1e-08,3008.9,3008.8,10.48598415]
[1752582900513,1e-08,3008.9,3008.8,3.48918415]
[1752582900661,1e-08,3008.9,3008.8,9.71341999]
[1752582900862,1e-08,3008.9,3008.8,0.1656]
[1752582901170,1e-08,3008.9,3007.6,6.19]
[1752582901581,14.3236681,3008.8,3008.0,3.32445643]
[1752582901811,0.8127,3008.4,3008.3,3.32413655]
[1752582901971,1e-08,3008.9,3008.0,6.19]
[1752582902173,1e-08,3008.9,3008.8,3.32358415]
[1752582902913,1e-08,3008.9,3008.7,3.32369256]
[1752582903214,1e-08,3008.9,3008.3,6.19]
[1752582903400,1e-08,3008.9,3008.7,3.32363465]
[1752582903600,1e-08,3008.9,3008.8,3.32358415]
[1752582904400,1e-08,3008.9,3008.8,4.18851999]
[1752582904716,1e-08,3008.9,3008.8,3.32358415]
[1752582905210,1e-08,3008.9,3008.6,3.32379317]
[1752582905410,1e-08,3008.9,3008.5,3.32387077]
[1752582905614,1e-08,3008.9,3008.7,3.32369461]
[1752582905814,1e-08,3008.9,3007.3,3.32521845]
[1752582906013,1e-08,3008.9,3008.5,3.32391238]
[1752582906314,14.08078415,3008.8,3007.3,4.11291845]
[1752582906484,10.0,3008.6,3008.1,3.3242837]
[1752582906686,4.08082279,3008.8,3008.3,3.32412562]
[1752582906881,0.7572,3008.8,3007.8,6.22324689]
[1752582907083,10.0,3008.6,3007.3,0.7877]
[1752582907299,0.8254,3008.0,3007.1,6.189]
[1752582907517,0.8254,3008.0,3006.9,8.7582]
[1752582907712,0.8254,3008.0,3007.0,6.189]
[1752582907912,0.8254,3008.0,3007.4,3.32503124]
[1752582908119,4.14996354,3008.0,3007.4,3.32503124]
[1752582908415,1.57283026,3008.0,3006.9,6.189]
[1752582908714,1.57283026,3008.0,3005.4,3.499]
[1752582908715,0.8293,3007.7,3006.1,0.8041]
[1752582908931,10.0,3007.5,3006.6,3.3259212]
[1752582909133,10.0,3007.3,3006.2,0.03326458]
[1752582909430,0.8184,3007.1,3006.1,0.04]
[1752582909602,30.0,3007.0,3006.3,3.32626897]
[1752582909807,33.32560078,3007.0,3006.4,3.32622266]
[1752582910031,0.8184,3007.1,3006.4,3.32622266]
[1752582910329,0.8184,3007.1,3006.1,0.04]
[1752582910330,7.0084,3007.1,3006.8,3.32568919]
[1752582910639,0.8184,3007.1,3007.0,3.32557366]
[1752582911131,0.1656,3007.4,3007.3,3.32524191]
[1752582911367,10.0,3007.8,3007.1,3.32537327]
[1752582911570,0.1656,3007.5,3006.9,0.1656]
[1752582911774,6.19,3007.9,3006.9,0.03325684]
[1752582911947,0.1656,3007.9,3007.7,3.32473472]
[1752582912142,0.1656,3007.9,3007.8,3.32468914]
[1752582912562,0.30951103,3008.8,3007.6,0.0332491]
[1752582912775,0.1656,3008.5,3007.8,0.1656]
[1752582912935,0.1656,3008.5,3008.3,3.32405005]
[1752582913138,0.30944955,3008.7,3008.5,3.32381571]
[1752582913336,7.35060337,3008.8,3008.5,3.32381571]
[1752582913337,0.1656,3008.6,3008.5,3.32381571]
[1752582913739,30.1656,3008.6,3008.2,3.32417772]
[1752582913963,0.1656,3008.6,3008.1,0.1656]
[1752582914277,0.1656,3008.6,3008.5,3.32391557]
[1752582914975,0.814,3008.8,3008.7,3.32369461]
[1752582915161,0.814,3008.8,3008.6,3.32377392]
[1752582915362,0.814,3008.8,3008.7,3.32369461]
[1752582917372,1e-08,3008.9,3008.8,3.32358415]
[1752582918532,1e-08,3008.9,3008.8,3.48918415]
[1752582920584,1e-08,3008.9,3008.8,3.32358415]
[1752582921870,1e-08,3008.9,3008.1,9.50927471]
[1752582922192,7.22606333,3008.8,3007.3,0.7909]
[1752582922358,3.32441573,3008.1,3007.5,3.32493432]
[1752582922553,0.8194,3008.2,3007.2,3.32529353]
[1752582922554,10.0,3007.9,3007.2,3.32529353]
[1752582922753,10.8194,3008.2,3006.8,6.184]
[1752582922754,30.0,3007.8,3006.8,6.184]
[1752582922954,10.0,3008.0,3007.6,3.32486548]
[1752582923155,0.8194,3008.2,3007.1,3.35868533]
[1752582923362,10.8194,3008.2,3007.2,0.33586853]
[1752582923555,3.32446975,3008.0,3007.4,3.32505111]
[1752582923795,30.0,3007.9,3006.2,11.30935609]
[1752582924004,0.8302,3007.7,3006.6,3.32601609]
[1752582924207,33.32491022,3007.6,3006.8,3.32568791]
[1752582924405,3.32513134,3007.4,3006.2,7.983]
[1752582924707,0.8183,3006.9,3006.3,3.32627408]
[1752582925003,30.0,3006.8,3006.1,3.36655712]
[1752582925318,30.0,3006.8,3006.1,0.04]
[1752582925499,3.3261504,3006.5,3006.1,0.04]
[1752582925816,10.0,3006.8,3006.1,0.04]
[1752582925963,30.0,3006.7,3006.1,3.36650312]
[1752582926170,33.32596845,3006.7,3006.1,0.04]
[1752582926377,30.0,3006.6,3006.1,3.36653355]
[1752582926566,33.32602935,3006.6,3006.1,0.04]
[1752582926805,30.0,3006.5,3006.1,0.04]
[1752582926972,0.8183,3006.9,3006.1,0.04]
[1752582927166,6.184,3006.8,3006.6,3.32597851]
[1752582927466,0.8183,3006.9,3006.2,3.32637708]
[1752582927692,0.8183,3006.9,3006.3,0.33663771]
[1752582927693,7.0003,3006.9,3006.3,0.33663771]
[1752582928101,7.0003,3006.9,3006.1,0.04]
[1752582928102,10.32607233,3006.9,3006.1,0.04]
[1752582928299,6.182,3006.9,3006.7,3.32581161]
[1752582928608,0.7865,3007.3,3006.1,0.04]
[1752582928609,16.9695,3007.3,3006.1,0.04]
[1752582928785,10.0,3007.1,3006.2,3.32645865]
[1752582929103,10.0,3007.1,3006.1,0.04]
[1752582929104,4.15853921,3006.5,3006.1,0.04]
[1752582929293,0.8324,3006.5,3006.1,0.04]
[1752582929492,3.32645865,3006.2,3006.1,0.04]
[1752582929676,0.8324,3006.5,3006.1,0.04]
[1752582929877,0.8324,3006.5,3006.4,3.32623736]
[1752582930312,0.7535,3007.3,3006.2,3.32645865]
[1752582930511,40.0,3007.2,3006.7,3.32582955]
[1752582930812,6.9355,3007.3,3006.5,3.32607334]
[1752582931007,0.1656,3007.2,3007.0,3.32548475]
[1752582931172,0.1656,3007.2,3007.1,3.32546307]
[1752582931366,0.1656,3007.2,3007.0,3.32552615]
[1752582931572,0.1656,3007.2,3007.1,3.32546307]
[1752582931802,0.1656,3007.2,3006.7,0.1656]
[1752582932008,3.32567447,3007.0,3006.4,3.32619883]
[1752582932213,0.1656,3006.8,3006.2,0.1656]
[1752582932370,0.1656,3006.8,3006.7,3.32590547]
[1752582932715,6.181,3007.6,3007.5,3.32502078]
[1752582932867,0.1656,3007.5,3007.4,3.32503109]
[1752582933314,0.7613,3008.1,3007.4,0.48251892]
[1752582933470,0.1656,3008.0,3007.9,3.3245786]
[1752582933674,0.1656,3008.0,3007.8,3.32465283]
[1752582934175,3.32388959,3008.6,3007.9,3.32450924]
[1752582934393,0.1656,3008.1,3007.9,3.32447355]
[1752582934599,0.1656,3008.1,3008.0,3.32446808]
[1752582935503,0.1656,3008.3,3007.8,0.1656]
[1752582935808,0.1656,3008.3,3008.0,3.3243832]
[1752582936011,10.7563,3008.1,3007.4,0.1656]
[1752582936165,0.1656,3007.9,3007.4,0.1656]
[1752582936370,30.0,3007.8,3006.8,6.179]
[1752582936580,16.9353,3008.1,3006.8,0.1656]
[1752582936581,0.1656,3007.4,3006.8,0.1656]
[1752582936868,0.1656,3006.8,3006.3,0.1666]
[1752582937069,10.0,3007.0,3006.3,0.001]
[1752582937316,3.49183736,3006.4,3006.3,0.001]
[1752582937541,33.49183736,3006.4,3006.3,0.001]
[1752582937666,49.66983736,3006.4,3006.3,0.001]
[1752582937867,50.45213736,3006.4,3006.3,0.001]
[1752582938463,10.0,3006.2,3005.4,0.001]
[1752582938672,4.1046334,3005.5,3005.4,0.001]
[1752582939194,34.1046334,3005.5,3005.4,0.001]
[1752582939494,44.1046334,3005.5,3005.4,0.001]
[1752582941705,50.2806334,3005.5,3005.4,0.001]
[1752582941893,58.1106334,3005.5,3005.4,0.001]
[1752582942085,59.19042387,3005.5,3005.4,0.001]
[1752582942829,49.68719047,3005.5,3005.4,0.001]
[1752582942972,28.1106334,3005.5,3005.4,0.001]
[1752582943175,20.9604,3005.5,3005.4,0.001]
[1752582943412,54.2876334,3005.5,3005.4,0.001]
[1752582943625,64.2876334,3005.5,3005.4,0.001]
[1752582944497,60.9604,3005.5,3005.4,0.001]
[1752582944842,30.183,3005.5,3005.4,0.001]
[1752582944981,12.351,3005.7,3005.4,0.33384119]
[1752582945174,12.35,3005.6,3005.5,3.3272334]
[1752582945374,12.35,3005.6,3005.4,3.32834411]
[1752582945575,0.1656,3005.9,3005.8,3.32690132]
[1752582945877,0.1656,3006.5,3006.4,3.32623736]
[1752582946298,6.3396,3006.5,3006.3,3.32630369]
[1752582946519,6.3396,3006.5,3006.4,3.32623736]
[1752582947340,0.7569,3007.8,3006.4,0.6652587]
[1752582947653,0.1656,3006.7,3006.6,3.32601609]
[1752582947948,6.3386,3006.7,3006.2,0.1656]
[1752582948425,0.1656,3006.7,3006.6,3.32601609]
[1752582949093,0.7824,3007.5,3007.0,3.3255091]
[1752582949295,0.1656,3007.1,3006.6,0.1656]
[1752582949595,0.1656,3007.1,3007.0,3.32557366]
[1752582951856,6.169,3007.6,3007.5,3.32502078]
[1752582952613,6.169,3007.6,3007.3,0.1656]
[1752582952809,6.169,3007.6,3007.5,3.32502078]
[1752582953428,0.1656,3007.8,3007.7,3.32479968]
[1752582953654,10.1656,3007.8,3007.5,3.32493935]
[1752582953989,10.1656,3007.8,3007.3,0.1656]
[1752582954180,10.0,3007.8,3007.2,3.32524817]
[1752582954317,0.1656,3007.6,3007.2,3.32532465]
[1752582954627,0.1656,3007.6,3007.5,3.32502078]
[1752582955175,1.01656,3007.6,3006.7,0.7548]
[1752582955316,10.0,3007.8,3007.2,3.32528379]
[1752582955521,10.0,3007.6,3007.2,3.32528379]
[1752582955821,10.7922,3007.4,3006.5,12.33]
[1752582956055,10.7922,3007.4,3007.0,3.32547906]
[1752582956254,12.48772,3007.4,3006.8,3.32570582]
[1752582956567,10.0,3007.8,3006.5,12.33]
[1752582956867,13.32499567,3007.6,3006.5,12.33]
[1752582957049,13.32499567,3007.6,3006.9,3.32557535]
[1752582957372,10.0,3007.8,3007.0,3.32555436]
[1752582957515,10.002,3007.8,3007.3,3.3251398]
[1752582957742,13.32669409,3007.8,3006.6,3.32601609]
[1752582958014,10.002,3007.8,3007.3,3.32524118]
[1752582958435,10.002,3007.8,3007.4,3.32509336]
[1752582958757,10.002,3007.8,3007.3,3.32515519]
[1752582958961,30.0,3007.7,3007.1,3.32542921]
[1752582959122,30.0,3007.7,3006.9,0.7716]
[1752582959316,10.002,3007.8,3006.9,0.7716]
[1752582959674,10.002,3007.8,3007.3,3.32520654]
[1752582959837,0.002,3007.8,3006.9,0.7716]
[1752582960018,0.002,3007.8,3007.5,3.32493261]
[1752582960223,0.002,3007.8,3007.1,3.32546307]
[1752582960580,0.002,3007.8,3007.6,3.32488346]
[1752582960877,0.7636,3008.5,3007.1,12.318]
[1752582961023,6.9226,3008.5,3007.2,4.590406]
[1752582961223,0.002,3008.4,3007.6,0.7716]
[1752582961442,0.002,3008.4,3008.2,3.32424179]
[1752582961866,0.002,3008.4,3008.1,3.32430313]
[1752582962067,0.002,3008.4,3007.6,0.7716]
[1752582962275,0.002,3008.4,3008.3,3.32413655]
[1752582962582,0.002,3008.4,3008.2,3.32420567]
[1752582962780,3.32433785,3008.2,3007.3,3.32513774]
[1752582962982,10.33263378,3008.2,3007.2,6.9276]
[1752582963150,3.32445684,3008.1,3007.5,3.3249594]
[1752582963356,6.48863378,3008.2,3007.2,6.9276]
[1752582963582,10.002,3008.4,3007.8,3.32460667]
[1752582963886,10.002,3008.4,3007.4,3.32513134]
[1752582963887,10.002,3008.4,3007.9,3.32452046]
[1752582964054,33.32414156,3008.3,3007.7,3.32473771]
[1752582964262,3.32414156,3008.3,3007.7,3.32473771]
[1752582964587,40.7556,3008.2,3006.8,0.771]
[1752582964755,4.08074287,3007.4,3006.7,3.32588883]
[1752582964946,4.08074287,3007.4,3006.3,0.771]
[1752582964947,6.9086,3007.4,3006.4,3.32623565]
[1752582965286,6.153,3007.4,3007.0,3.49110588]
[1752582965489,0.1656,3007.6,3007.4,3.32502798]
[1752582965646,10.0,3007.9,3007.5,3.32502078]
[1752582965849,10.1656,3007.9,3007.5,3.32502078]
[1752582966079,10.1656,3007.9,3007.4,0.1656]
[1752582966487,6.152,3008.0,3007.8,3.32462839]
[1752582966653,0.002,3008.4,3008.1,3.32435756]
[1752582966853,0.002,3008.4,3007.4,9.47603694]
[1752582966854,0.002,3008.4,3008.3,3.32413655]
[1752582967047,0.002,3008.4,3008.3,3.48973655]
[1752582968392,0.002,3008.4,3008.3,4.95473446]
[1752582968555,0.002,3008.4,3008.3,4.27333655]
[1752582970177,0.002,3008.4,3008.3,3.48973655]
[1752582970583,0.002,3008.4,3008.3,0.1656]
[1752582971097,0.002,3008.4,3008.3,3.32413655]
[1752582971299,0.002,3008.4,3008.2,0.1656]
[1752582972100,3.32435756,3008.1,3007.1,0.7778]
[1752582972316,30.0,3008.0,3006.9,6.143]
[1752582972453,0.1656,3007.7,3007.2,3.49088594]
[1752582972782,0.1656,3007.7,3007.2,0.1656]
[1752582972983,0.1656,3007.3,3006.9,3.32560253]
[1752582973184,0.1656,3007.3,3006.8,0.1656]
[1752582973486,3.32553425,3007.1,3006.5,3.32612672]
[1752582973689,0.1656,3007.1,3006.6,0.1656]
[1752582974018,0.1656,3007.1,3006.7,3.32579783]
[1752582974297,0.1656,3007.1,3006.7,3.32590547]
[1752582974664,0.1656,3007.1,3006.8,3.32577722]
[1752582974858,0.1656,3007.1,3007.0,3.32557366]
[1752582975168,0.1656,3007.4,3007.2,3.32533874]
[1752582975377,0.1656,3007.4,3007.2,3.32533281]
[1752582975623,0.1656,3007.4,3006.9,0.1656]
[1752582975905,0.1656,3007.4,3007.3,3.32524191]
[1752582976063,10.0,3007.7,3006.1,3.36651224]
[1752582976266,0.1656,3007.4,3006.9,3.491233]
[1752582976610,0.1656,3007.4,3007.1,3.32540919]
[1752582976839,0.1656,3007.4,3007.0,3.32552971]
[1752582976975,0.1656,3007.4,3007.0,3.32548445]
[1752582977434,0.1656,3007.4,3007.0,3.32554962]
[1752582977585,0.51465732,3007.4,3006.9,0.1656]
[1752582977804,0.1656,3007.0,3006.4,0.1656]
[1752582977999,3.32630655,3006.4,3006.1,0.04]
[1752582978320,3.49174924,3006.5,3006.1,0.04]
[1752582978490,17.23733418,3006.8,3006.1,0.04]
[1752582978694,0.1656,3006.2,3006.1,0.04]
[1752582979515,0.1656,3006.2,3006.1,3.3665693]
[1752582979883,0.1656,3006.2,3006.1,0.04]
[1752582980589,14.29275865,3006.2,3006.1,0.04]
[1752582981291,51.53009283,3006.2,3006.1,0.04]
[1752582981708,52.23996633,3006.2,3006.1,0.04]
[1752582981907,14.0790334,3005.5,3005.4,0.001]
[1752582982149,46.8848,3005.5,3005.4,0.001]
[1752582982286,16.8848,3005.5,3005.4,0.001]
[1752582982477,0.88879964,3006.8,3005.4,0.001]
[1752582982816,0.1656,3005.9,3005.4,0.1666]
[1752582983024,10.0,3006.1,3005.6,3.32701243]
[1752582983177,10.0,3006.1,3005.9,3.32672]
[1752582983382,0.1656,3006.1,3006.0,3.32667997]
[1752582984930,10.0,3006.6,3005.9,0.7943]
[1752582985128,10.0,3006.6,3006.5,3.32612672]
[1752582985798,0.1656,3006.5,3006.4,3.32617852]
[1752582988188,0.1656,3006.5,3006.2,3.326454]
[1752582988366,10.0,3006.6,3006.2,3.326454]
[1752582988570,0.1656,3006.3,3006.2,3.326454]
[1752582988781,6.2916,3006.3,3006.2,3.326454]
[1752582989081,0.1656,3006.3,3006.2,3.326454]
[1752582989290,6.2906,3006.3,3006.2,3.326454]
[1752582989441,0.1656,3006.3,3006.2,3.326454]
[1752582989644,6.124,3006.6,3005.6,6.124]
[1752582989939,6.2896,3006.6,3006.5,3.32612672]
[1752582990470,6.2896,3006.6,3006.3,3.3263216]
[1752582990683,6.2896,3006.6,3006.5,3.32612672]
[1752582991554,6.2886,3006.6,3006.5,3.32612672]
[1752582991883,6.2886,3006.6,3005.6,9.4490878]
[1752582992084,40.0,3006.5,3005.5,6.8889]
[1752582992252,0.1656,3006.1,3005.7,3.32698702]
[1752582992579,6.2866,3006.1,3005.8,3.3268652]
[1752582992783,6.2866,3006.1,3005.9,3.32672166]
[1752582992986,6.12,3006.1,3006.0,3.32667997]
[1752582993690,6.12,3006.1,3005.7,0.1656]
[1752582994187,6.118,3006.1,3006.0,3.32667997]
[1752582994394,6.2836,3006.2,3005.8,3.32679244]
[1752582994686,6.2836,3006.2,3005.8,3.32687456]
[1752582994891,6.99309,3006.2,3005.7,0.1656]
[1752582995093,0.7701,3006.0,3005.4,0.001]
[1752582995254,10.0,3005.8,3005.4,0.001]
[1752582995458,10.0,3005.6,3005.4,0.001]
[1752582995697,6.117,3005.5,3005.4,0.001]
[1752582996498,0.7701,3006.0,3005.5,3.32721906]
[1752582996681,6.116,3005.7,3005.6,3.3271227]
[1752582996885,16.115,3006.0,3005.9,3.3267782]
[1752582997497,0.1656,3006.1,3006.0,3.32667997]
[1752582997653,16.2796,3006.1,3006.0,3.32667997]
[1752582998095,16.2796,3006.1,3005.9,3.32677819]
[1752582998479,16.2796,3006.1,3005.5,0.1656]
[1752582998480,17.90756,3006.1,3005.6,3.32701717]
[1752582998698,17.90756,3006.1,3005.8,3.32681712]
[1752582999403,10.1656,3006.1,3005.5,0.1656]
[1752582999781,16.111,3006.0,3005.5,3.49276064]
[1752582999961,16.111,3006.0,3005.7,3.3269441]
[1752583000160,0.1656,3005.8,3005.7,3.3269441]
[1752583000376,0.1656,3005.8,3005.6,3.32707257]
[1752583000707,6.2756,3005.8,3005.7,3.32701201]
[1752583001104,0.1656,3005.8,3005.7,3.32701201]
[1752583001308,10.0,3006.2,3006.1,3.3265679]
[1752583001623,10.0,3006.2,3006.0,3.32663373]
[1752583001903,10.0,3006.2,3005.9,3.32673687]
[1752583002081,10.0,3006.2,3005.9,3.326761]
[1752583002264,10.0,3006.2,3006.1,3.3265693]
[1752583003331,10.0,3006.2,3006.0,3.32665081]
[1752583003745,10.0,3006.2,3005.8,0.001]
[1752583003874,3.32668763,3006.0,3005.8,0.001]
[1752583004182,49.43179064,3005.9,3005.8,0.001]
[1752583004381,19.43179064,3005.9,3005.8,0.001]
[1752583004611,49.43179064,3005.9,3005.8,0.001]
[1752583004777,49.88412111,3005.9,3005.8,0.001]
[1752583005374,57.12145529,3005.9,3005.8,0.001]
[1752583005590,68.25695529,3005.9,3005.8,0.001]
[1752583005826,60.42695529,3005.9,3005.8,0.001]
[1752583006174,60.73782976,3005.9,3005.8,0.001]
[1752583006448,60.73782976,3005.9,3005.8,1e-08]
[1752583006598,14.6367334,3005.5,3005.4,0.001]
[1752583006919,50.1887334,3005.5,3005.4,0.001]
[1752583007590,50.7387334,3005.5,3005.4,0.001]
[1752583008250,50.7387334,3005.5,3004.3,3.32851671]
[1752583008251,3.32773625,3005.1,3004.3,3.27251671]
[1752583008403,36.1,3005.0,3004.5,3.32826994]
[1752583008606,0.1664,3004.7,3004.5,3.32826994]
[1752583008784,6.099,3004.6,3004.4,3.32840837]
[1752583008987,6.099,3004.6,3004.3,3.32852932]
[1752583009181,6.099,3004.6,3004.1,0.041]
[1752583009419,0.1664,3004.5,3004.2,3.32861043]
[1752583009600,6.098,3004.4,3004.3,3.32854963]
[1752583010585,0.89034898,3006.6,3006.0,0.8213]
[1752583010811,0.89034898,3006.7,3006.6,3.32601609]
[1752583011232,16.192,3006.7,3006.5,3.32604429]
[1752583011386,16.192,3006.7,3006.5,3.32602708]
[1752583011387,0.71572424,3006.6,3006.5,3.32602708]
[1752583012189,4.71572424,3006.6,3006.5,3.32602708]
[1752583012417,0.71572424,3006.6,3006.0,0.8213]
[1752583012586,10.0,3006.6,3006.0,0.8213]
[1752583012781,10.71572424,3006.6,3006.0,0.8213]
[1752583012987,11.60607322,3006.6,3005.9,3.32673453]
[1752583013214,11.60607322,3006.6,3005.7,3.32701201]
[1752583013215,33.32614392,3006.5,3005.7,3.32701201]
[1752583013419,46.22599401,3006.4,3005.8,3.63050006]
[1752583013603,30.71572424,3006.3,3005.9,0.30362501]
[1752583013798,12.184,3006.2,3006.1,3.32649712]
[1752583014086,22.184,3006.2,3006.1,0.30362501]
[1752583014299,55.51045865,3006.2,3006.1,0.30362501]
[1752583014600,63.54899283,3006.2,3006.1,0.30362501]
[1752583015542,56.31165865,3006.2,3006.1,0.30362501]
[1752583015740,26.31165865,3006.2,3006.1,0.30362501]
[1752583015939,22.9852,3006.2,3006.1,0.30362501]
[1752583016105,22.184,3006.2,3005.8,3.3268872]
[1752583016303,10.0,3006.1,3005.9,0.30383218]
[1752583016501,22.176,3006.0,3005.8,3.3268872]
[1752583016704,22.176,3006.0,3005.9,0.3038168]
[1752583017110,22.176,3006.0,3005.9,3.63060744]
[1752583017542,22.176,3006.0,3005.9,0.3038168]
[1752583018453,25.50267997,3006.0,3005.9,0.3038168]
[1752583018950,55.50267997,3006.0,3005.9,0.3038168]
[1752583019131,56.27407997,3006.0,3005.9,0.3038168]
[1752583019337,3.32697716,3005.8,3005.2,3.32749621]
[1752583019650,12.169,3005.7,3005.3,0.30416375]
[1752583019811,12.169,3005.7,3005.4,3.63140523]
[1752583020010,15.49608757,3005.7,3005.5,0.30416375]
[1752583020249,25.49608757,3005.7,3005.6,0.30416375]
[1752583020555,55.49608757,3005.7,3005.6,0.30416375]
[1752583020847,55.49608757,3005.7,3004.9,3.3278241]
[1752583020848,3.32731574,3005.5,3004.9,3.3278241]
[1752583021045,0.1656,3005.2,3004.5,0.8293]
[1752583021343,12.164,3005.1,3005.0,3.49337011]
[1752583021867,12.164,3005.1,3005.0,4.17549668]
[1752583022068,15.49167628,3005.1,3005.0,0.1656]
[1752583022375,10.1656,3005.0,3004.2,0.1664]
[1752583022677,0.1664,3004.8,3004.3,3.32852327]
[1752583022858,12.159,3004.7,3004.3,3.32852327]
[1752583023055,0.1664,3004.8,3004.4,3.32842246]
[1752583023269,6.079,3004.7,3004.3,0.76255965]
[1752583023433,6.079,3004.7,3004.5,0.1664]
[1752583024935,6.078,3004.8,3004.2,3.32867319]
[1752583025129,6.078,3004.8,3004.7,3.32811927]
[1752583025333,0.1656,3005.1,3004.8,3.3279329]
[1752583025566,6.077,3005.0,3004.6,3.32815133]
[1752583025744,0.1664,3004.8,3004.4,3.32840027]
[1752583026072,6.076,3004.7,3004.5,3.3282554]
[1752583026473,6.076,3004.7,3004.6,3.32823004]
[1752583027239,6.076,3004.7,3004.5,3.49468822]
[1752583027769,6.076,3004.7,3004.5,0.1664]
[1752583028079,6.076,3004.7,3004.2,3.32862016]
[1752583028246,6.2424,3004.7,3004.2,3.32862016]
[1752583028461,6.2424,3004.7,3004.4,3.32837101]
[1752583028836,6.2424,3004.7,3004.3,3.32851219]
[1752583029060,6.2424,3004.7,3004.1,0.9684]
[1752583029261,9.57056945,3004.7,3004.2,3.32865143]
[1752583029572,6.2424,3004.7,3004.2,3.32865143]
[1752583029776,0.1664,3004.7,3004.2,3.32867319]
[1752583029977,6.071,3004.8,3004.2,3.32867319]
[1752583030175,6.071,3004.8,3004.1,0.802]
[1752583030176,6.071,3004.8,3004.6,3.3281753]
[1752583030973,0.1656,3005.0,3004.9,3.32789776]
[1752583031272,0.1656,3005.0,3004.5,0.1664]
[1752583031273,6.2346,3005.0,3004.5,0.1664]
[1752583031476,0.1656,3005.0,3004.7,3.32808172]
[1752583031634,6.2346,3005.0,3004.7,3.32808172]
[1752583031837,0.1656,3005.0,3004.8,3.3279728]
[1752583032038,10.1656,3005.4,3005.2,3.3274929]
[1752583032239,6.068,3005.3,3004.9,4.29243581]
[1752583032540,6.068,3005.3,3004.9,3.49343581]
[1752583032739,3.32767628,3005.1,3005.0,0.30421105]
[1752583033378,33.32767628,3005.1,3005.0,0.30421105]
[1752583033766,43.32767628,3005.1,3005.0,0.30421105]
[1752583034175,50.56501046,3005.1,3005.0,0.30421105]
[1752583035111,58.39501046,3005.1,3005.0,0.30421105]
[1752583035613,23.894,3005.1,3005.0,0.30421105]
[1752583035957,57.22167628,3005.1,3005.0,0.30421105]
[1752583036160,57.22167628,3005.1,3004.4,3.49479388]
[1752583036350,0.1664,3004.8,3004.5,0.30427125]
[1752583036551,6.062,3004.7,3004.6,0.30427125]
[1752583036873,6.062,3004.7,3004.6,0.30430898]
[1752583037384,6.2284,3004.7,3004.6,0.30430898]
[1752583037881,9.55651927,3004.7,3004.6,0.30430898]
[1752583038226,6.2284,3004.7,3004.6,0.30430898]
[1752583038984,10.59195038,3004.7,3004.6,0.30430898]
[1752583040488,50.59195038,3004.7,3004.6,0.30430898]
[1752583040697,53.14195038,3004.7,3004.6,0.30430898]
[1752583040898,3.32867319,3004.2,3004.1,0.041]
[1752583041099,28.04227319,3004.2,3004.1,0.041]
[1752583041403,59.80021491,3004.2,3004.1,0.041]
[1752583041795,61.80021491,3004.2,3004.1,0.041]
[1752583042001,61.80021491,3004.2,3003.2,0.001]
[1752583042002,3.32967069,3003.3,3003.2,0.001]
[1752583042226,50.21577069,3003.3,3003.2,0.001]
[1752583042899,52.76577069,3003.3,3003.2,0.001]
[1752583043121,53.8012018,3003.3,3003.2,0.001]
[1752583043558,51.2502018,3003.3,3003.2,0.001]
[1752583043852,10.8321,3003.3,3003.2,0.001]
[1752583044228,3.32820557,3004.7,3003.7,3.32922728]
[1752583044540,0.1664,3003.9,3003.2,0.9331]
[1752583044698,6.2174,3003.9,3003.8,3.32911645]
[1752583044900,6.051,3003.9,3003.8,3.32911645]
[1752583045128,0.1664,3004.2,3004.1,3.32878399]
[1752583045332,4.20565668,3005.0,3004.4,3.3284516]
[1752583045333,6.051,3004.5,3004.4,3.3284516]
[1752583045535,0.1664,3004.5,3004.0,0.9321]
[1752583045702,6.05,3004.4,3004.0,0.9321]
[1752583045917,6.05,3004.4,3004.1,3.32878399]
[1752583046115,6.05,3004.4,3004.0,4.26096669]
[1752583046318,6.05,3004.4,3004.0,4.26090901]
[1752583046518,0.1664,3004.2,3003.7,0.1664]
[1752583046722,0.1664,3004.2,3003.5,0.7657]
[1752583046723,0.1664,3004.0,3003.6,3.32930995]
[1752583046921,4.12480398,3004.2,3003.2,0.7667]
[1752583046922,36.049,3003.9,3003.2,0.7667]
[1752583047246,36.049,3003.8,3003.2,0.7667]
[1752583047448,0.1664,3003.5,3003.2,0.001]
[1752583047743,3.32967069,3003.3,3003.2,0.001]
[1752583047929,40.0,3003.3,3003.2,0.001]
[1752583048302,43.32967069,3003.3,3003.2,0.001]
[1752583048655,43.87967069,3003.3,3003.2,0.001]